Workbook

Sheet 1
A1: Школа | B1: МБОУ "СОШ №9 г.Азнакаево" | E1: Отд./корп | H1: День | I1: 2024-06-25
A3: Прием пищи | B3: Раздел | C3: № рец. | D3: Блюдо | E3: Выход, г | F3: Калорийность | G3: Белки | H3: Жиры | I3: Углеводы
A4: Завтрак | D4: Бутерброд с маслом | E4: 30/10 | F4: 144.60 | G4: 2.33 | H4: 8.12 | I4: 15.55
D5: Пудинг из творога со сгущённым молоком | E5: 120/30 | F5: 93.90 | G5: 3.80 | H5: 3.82 | I5: 15.48
D6: Блины с маслом сливочным | E6: 45/5 | F6: 99.14 | G6: 2.43 | H6: 0.95 | I6: 11.60
D7: Чай с сахаром | E7: 190/10 | F7: 42.66 | G7: 0.38 | H7: 0.10 | I7: 10.06
D8: Фрукты свежие (Яблоки) | E8: 120 | F8: 56.40 | G8: 0.48 | H8: 0.48 | I8: 11.76
D9: Батон высший сорт | E9: 30 | F9: 78.60 | G9: 2.25 | H9: 0.87 | I9: 15.42
D10: Итого: | E10: 590 | F10: =SUM(F4:F9) -> 515.30 | G10: =SUM(G4:G9) -> 11.67 | H10: =SUM(H4:H9) -> 14.34 | I10: =SUM(I4:I9) -> 79.87
A11: Завтрак 2 | D11: Крекер | E11: 20 | F11: 83.20 | G11: 1.84 | H11: 2.82 | I11: 12.64
D12: Молоко кипяченное | E12: 200 | F12: 107.00 | G12: 5.80 | H12: 5.00 | I12: 9.60
D13: Итого: | E13: 220 | F13: =SUM(F11:F12) -> 190.20 | G13: =SUM(G11:G12) -> 7.64 | H13: =SUM(H11:H12) -> 7.82 | I13: 22.24
D14: Итого за завтрак: | E14: =E10+E13 -> 810 | F14: =F10+F13 -> 705.50 | G14: =G10+G13 -> 19.31 | H14: =H10+H13 -> 22.16 | I14: =I10+I13 -> 102.11
A15: Обед | D15: Огурцы свежие | E15: 60 | F15: 8.40 | G15: 0.48 | H15: 0.06 | I15: 1.50
D16: Борщ с капустой, с картофелем, с куриными фрикадельками,со сметаной | E16: 200/11/10 | F16: 121.86 | G16: 3.20 | H16: 10.96 | I16: 9.98
D17: Шницель куриный натуральный | E17: 90 | F17: 194.63 | G17: 13.09 | H17: 12.24 | I17: 8.14
D18: Каша гречневая рассыпчатая | E18: 150 | F18: 214.00 | G18: 8.77 | H18: 2.30 | I18: 39.73
D19: Нектар плодовый (разливной) | E19: 180 | F19: 76 | G19: 0.90 | H19: 0.00 | I19: 18.18
D20: Хлеб ржаной | E20: 50 | F20: 99.00 | G20: 3.30 | H20: 0.60 | I20: 19.80
D21: Хлеб пшеничный | E21: 40 | F21: 94.00 | G21: 3.04 | H21: 0.32 | I21: 19.68
D22: Итого: | E22: 791 | F22: =SUM(F15:F21) -> 808.21 | G22: =SUM(G15:G21) -> 32.78 | H22: =SUM(H15:H21) -> 26.48 | I22: 117.01
D23: Вода питьевая ПЭТ | E23: 500 | F23: 0.00 | G23: 0.00 | H23: 0.00 | I23: 0.00
D24: ВСЕГО: | E24: =E10+E13+E22+E23 -> 2101 | F24: =F10+F13+F22 -> 1513.71 | G24: =G10+G13+G22 -> 52.08 | H24: =H10+H13+H22 -> 48.64 | I24: =I10+I13+I22 -> 219.11
